Cogmind - Beta 10.2 @@@ ROGUE MODE // 2021.12.29 @ 00:02:49 // Winter2019/RPGLIKE Player: FontPeg Result: Destroyed by G-47 Trooper with Particle Gun Performance ------------- Evolutions (2) 1000 Regions Visited (5) 1000 Robots Destroyed (12) 60 Value Destroyed (412) 412 Prototype IDs (1) 20 Alien Tech Used (0) 0 Bonus (900) 900 TOTAL SCORE: 3392 Bonus ------- Pacifist 200 Entered Garrisons 200 Used RIF Installer 500 Cogmind --------- Core Integrity 0/750 Matter 290/300 Energy 84/100 System Corruption 0% Temperature Cool (6) Movement Core (50) Location -8/Garrison Parts ------- > --- POWER (1) -------- (None) > --- PROPULSION (2) --- (None) > --- UTILITY (2) ------ Signal Interpreter Hacking Suite > --- WEAPON (2) ------- Datajack > --- INVENTORY (1) ---- (None) Peak State ------------ > --- POWER ------------ Light Ion Engine > --- PROPULSION ------- VTOL Module > --- UTILITY ---------- Signal Interpreter Hacking Suite > --- WEAPON ----------- Axe Axe > --- INVENTORY -------- Datajack [Rating: 13] Favorites ----------- Power Light Ion Engine Engine Light Ion Engine Propulsion VTOL Module Flight Unit VTOL Module Utility Signal Interpreter Device Heat Sink Processor Signal Interpreter Hackware Hacking Suite Weapon Axe Energy Gun EM Pulse Gun Energy Cannon Advanced Beam Cannon Ballistic Gun Assault Rifle Slashing Weapon Axe Special Melee Weapon Datajack Build | -11 -10 -10 -9 -8 -8 ------- Run | Scr Mat Min Mat Mat Gar Slots Evolved 3 | 2 . . . 1 . Power . | . . . . . . Propulsion 1 | 1 . . . . . Utility 1 | . . . . 1 . Weapon 1 | 1 . . . . . Parts Attached 14 | 3 2 . 7 1 1 Power 1 | 1 . . . . . Engine 1 | 1 . . . . . Core . | . . . . . . Reactor . | . . . . . . Propulsion 1 | . . . 1 . . Treads . | . . . . . . Leg . | . . . . . . Wheel . | . . . . . . Hover . | . . . . . . Flight 1 | . . . 1 . . Utility 3 | . 1 . 1 1 . Device 1 | . 1 . . . . Storage . | . . . . . . Processor 1 | . . . 1 . . Hackware 1 | . . . . 1 . Protection . | . . . . . . Artifact . | . . . . . . Weapon 9 | 2 1 . 5 . 1 Energy Gun 1 | 1 . . . . . Energy Cannon 1 | . . . 1 . . Ballistic Gun 2 | 1 1 . . . . Ballistic Cannon . | . . . . . . Launcher . | . . . . . . Special Weapon . | . . . . . . Impact Weapon . | . . . . . . Slashing Weapon 4 | . . . 4 . . Piercing Weapon . | . . . . . . Special Melee Weapon 1 | . . . . . 1 Unidentified Prototypes 1 | . . . 1 . . Parts Lost 2 | . . . . . 2 Power 1 | . . . . . 1 Propulsion 1 | . . . . . 1 Utility . | . . . . . . Weapon . | . . . . . . Highest Loss Streak 1 | . . . . . 1 Average Slot Usage (%) 67 | . 64 66 66 85 71 Engine 13 | . 16 16 16 14 6 Flight 4 | . . . 2 14 13 Device 6 | . 14 16 3 . . Processor 8 | . . . 12 14 14 Hackware 3 | . . . . 14 14 Energy Gun 6 | . 16 16 2 . . Ballistic Gun 6 | . 16 16 2 . . Slashing Weapon 15 | . . . 26 28 22 Naked Turns . | . . . . . . Heaviest Build 10 | 6 8 8 10 9 9 Greatest Support 15 | 8 8 8 15 15 15 Greatest Overweight (x) 1 | 1 . . 1 . . Average Overweight (x) . | . . . . . . Largest Inventory Capacity 1 | 1 1 1 1 1 1 Average Capacity . | . 1 1 1 1 1 Most Carried 1 | 1 1 1 1 1 1 Average Carried . | . . 1 1 1 . Final Capacity 1 | 1 1 1 1 1 1 Final Carried 1 | 1 1 1 1 1 . Class Distribution -------------------- 100% | Hacker-Mutant Dominant Class ---------------- Hacker-Mutant | -10/Materials Hacker-Mutant | -10/Mines Hacker-Mutant | -9/Materials Hacker-Mutant | -8/Materials Hacker-Mutant | -8/Garrison Resources | -11 -10 -10 -9 -8 -8 ----------- Run | Scr Mat Min Mat Mat Gar Matter Collected 330 | 224 . 26 40 40 . Remotely . | . . . . . . Salvage Created 585 | . . . 445 . 140 Parts 24 | . . . 22 . 2 Haulers Intercepted . | . . . . . . Recyclers Shooed . | . . . . . . Parts Field Recycled . | . . . . . . Retrieved Matter . | . . . . . . Parts Self-Destructed . | . . . . . . Prevented . | . . . . . . Kills | -11 -10 -10 -9 -8 -8 ------- Run | Scr Mat Min Mat Mat Gar Combat Hostiles Destroyed 10 | . . . 8 . 2 Melee 10 | . . . 8 . 2 Classes Destroyed 5 | . . . 5 . . Recycler 1 | . . . 1 . . Watcher 1 | . . . 1 . . Grunt 8 | . . . 6 . 2 Duelist 1 | . . . 1 . . Sentry 1 | . . . 1 . . Best Kill Streak 4 | . . . 4 . 1 Combat Bots Only 4 | . . . 4 . 1 Max Kills in Single Turn 1 | . . . 1 . 1 Gunslinging . | . . . . . . Exploded . | . . . . . . Melee 1 | . . . 1 . 1 Uniques/NPCs Destroyed . | . . . . . . Combat | -11 -10 -10 -9 -8 -8 -------- Run | Scr Mat Min Mat Mat Gar Damage Taken 1269 | . 14 12 397 . 846 Core 1136 | . 11 10 362 . 753 Absorbed by Shields 59 | . . . . . 59 Redirected to Core 418 | . 11 5 111 . 291 Core Remaining (%) 98 | 100 . 96 100 . . Volleys Fired . | . . . . . . Largest . | . . . . . . Hottest . | . . . . . . Shots Fired . | . . . . . . Gun . | . . . . . . Cannon . | . . . . . . Launcher . | . . . . . . Special . | . . . . . . Kinetic . | . . . . . . Thermal . | . . . . . . Explosive . | . . . . . . Electromagnetic . | . . . . . . Robot Hit Streak . | . . . . . . Robot Miss Streak . | . . . . . . Penetration Max . | . . . . . . Secondary Targets . | . . . . . . Shots Hit Robots 37 | . . . 19 . 18 Core Hits 14 | . . . 11 . 3 Critical Hits . | . . . . . . Critical Kills . | . . . . . . Critical Parts Destroyed . | . . . . . . Melee Attacks 54 | . . . 27 . 27 Impact . | . . . . . . Slashing 51 | . . . 27 . 24 Piercing . | . . . . . . Sneak Attacks 2 | . . . 1 . 1 Combat Hostiles . | . . . . . . Follow-up Attacks 5 | . . . 3 . 2 Damage Inflicted 1368 | . . . 721 . 647 Guns . | . . . . . . Cannons . | . . . . . . Explosions . | . . . . . . Melee 1368 | . . . 721 . 647 Ramming . | . . . . . . Kinetic . | . . . . . . Thermal . | . . . . . . Explosive . | . . . . . . Electromagnetic . | . . . . . . Impact . | . . . . . . Slashing 1368 | . . . 721 . 647 Piercing . | . . . . . . Highest Corruption 1 | . 1 1 . . . Average Corruption 1 | . 1 1 . . . Corruption Purged . | . . . . . . Effects 1 | . . 1 . . . Data Loss (minor) 1 | . . 1 . . . Overload Shots . | . . . . . . Overflow Damage 45 | . . . . . 45 Projectiles . | . . . . . . Explosions . | . . . . . . Melee 45 | . . . . . 45 Knockbacks . | . . . . . . Impact . | . . . . . . Kinetic . | . . . . . . Secondary . | . . . . . . Self-Inflicted Damage . | . . . . . . Shots . | . . . . . . Rammed . | . . . . . . Targets Rammed . | . . . . . . Kicked . | . . . . . . Crushed . | . . . . . . Highest Temperature . | . . . . . . Average Temperature . | . . . . . . Received Heat Transfer 462 | . 9 . 141 . 312 Siege Activations . | . . . . . . Robots Corrupted . | . . . . . . Combat Hostiles . | . . . . . . Parts Fried . | . . . . . . Impact Corruptions . | . . . . . . Robots Melted . | . . . . . . Combat Hostiles . | . . . . . . Parts Melted . | . . . . . . Heat Transferred . | . . . . . . Parts Sabotaged . | . . . . . . Parts Stolen . | . . . . . . Parts Stripped . | . . . . . . Power Chain Reactions . | . . . . . . Missiles Intercepted . | . . . . . . Alert | -11 -10 -10 -9 -8 -8 ------- Run | Scr Mat Min Mat Mat Gar Peak Influence 277 | . 5 1 277 117 167 Initial 117 | . . 1 . 117 76 Average 77 | . 4 1 139 117 109 Maximum Alert Level 1 | . . . 1 . . Low Security (%) 90 | 100 100 100 71 100 100 Level 1 9 | . . . 28 . . Level 2 . | . . . . . . Level 3 . | . . . . . . Level 4 . | . . . . . . Level 5 . | . . . . . . High Security . | . . . . . . Max Security . | . . . . . . Squads Dispatched 2 | . . . 2 . . Investigation . | . . . . . . Extermination . | . . . . . . Reinforcement 2 | . . . 2 . . Assault . | . . . . . . Garrison . | . . . . . . Intercept . | . . . . . . Construction Impeded . | . . . . . . Haulers Reinforced . | . . . . . . Stealth | -11 -10 -10 -9 -8 -8 --------- Run | Scr Mat Min Mat Mat Gar Distress Signals . | . . . . . . Communications Jammed . | . . . . . . Distress Signals . | . . . . . . Times Spotted 32 | . 2 3 13 . 14 Peak Tracking Total 10 | . 2 3 6 . 10 Tactical Retreats 5 | . . . 2 . 3 Traps | -11 -10 -10 -9 -8 -8 ------- Run | Scr Mat Min Mat Mat Gar Traps Triggered 4 | . 1 . . . 3 Indirectly . | . . . . . . Trap Hack Attempts . | . . . . . . Triggered . | . . . . . . Disarmed . | . . . . . . Reprogrammed . | . . . . . . Reused . | . . . . . . Traps Extracted . | . . . . . . Installed . | . . . . . . Triggered . | . . . . . . Machines | -11 -10 -10 -9 -8 -8 ---------- Run | Scr Mat Min Mat Mat Gar Machines Disabled . | . . . . . . Max in Single Turn . | . . . . . . Machines Sabotaged . | . . . . . . Garrisons Compromised . | . . . . . . Overloaded Fab Kills . | . . . . . . Fab Network Shutdowns . | . . . . . . Hacking | -11 -10 -10 -9 -8 -8 --------- Run | Scr Mat Min Mat Mat Gar Machines Accessed 3 | . 2 . . 1 . Terminals 1 | . 1 . . . . Fabricators . | . . . . . . Repair Stations 1 | . 1 . . . . Recycling Units . | . . . . . . Scanalyzers . | . . . . . . Garrison Access 1 | . . . . 1 . Total Hacks 5 | . 3 . . 2 . Successful 5 | . 3 . . 2 . Failed . | . . . . . . Catastrophic . | . . . . . . Database Lockouts . | . . . . . . Manual 3 | . 3 . . . . Terminals 2 | . 2 . . . . Fabricators . | . . . . . . Repair Stations 1 | . 1 . . . . Recycling Units . | . . . . . . Scanalyzers . | . . . . . . Garrison Access 2 | . . . . 2 . Terminal Hacks 1 | . 1 . . . . Terminal Index 1 | . 1 . . . . Fabricator Hacks . | . . . . . . Repair Station Hacks . | . . . . . . Recycling Unit Hacks . | . . . . . . Scanalyzer . | . . . . . . Garrison Access Hacks 2 | . . . . 2 . Unlock Access 1 | . . . . 1 . Coupler Status 1 | . . . . 1 . Unauthorized Hacks 2 | . 2 . . . . Terminals 1 | . 1 . . . . Operators 1 | . 1 . . . . Fabricators . | . . . . . . Repair Stations 1 | . 1 . . . . Mechanics 1 | . 1 . . . . Recycling Units . | . . . . . . Scanalyzers . | . . . . . . Garrison Access . | . . . . . . Data Cores Recovered . | . . . . . . Used . | . . . . . . Hacking Detections 1 | . 1 . . . . Full Trace Events . | . . . . . . Feedback Events . | . . . . . . Feedback Blocked . | . . . . . . Robot Schematics Acquired . | . . . . . . Robots Built . | . . . . . . Matter . | . . . . . . Time . | . . . . . . Total Robot Build Rating . | . . . . . . Part Schematics Acquired . | . . . . . . Parts Built . | . . . . . . Matter . | . . . . . . Time . | . . . . . . Total Part Build Rating . | . . . . . . Parts Repaired . | . . . . . . Time . | . . . . . . Parts Recycled . | . . . . . . Recycled Matter . | . . . . . . Retrieved Matter . | . . . . . . Retrieved Components . | . . . . . . Parts Scanalyzed . | . . . . . . Part Schematics Acquired . | . . . . . . Parts Damaged . | . . . . . . Bothacking | -11 -10 -10 -9 -8 -8 ------------ Run | Scr Mat Min Mat Mat Gar Used RIF Installer 1 | . . . . . 1 Robots Hacked . | . . . . . . Non-combat . | . . . . . . Combat . | . . . . . . Robot Hacks Applied . | . . . . . . Relay Couplers Released . | . . . . . . Robots Rewired . | . . . . . . Allies Hacked . | . . . . . . Hacks Repelled . | . . . . . . Allies | -11 -10 -10 -9 -8 -8 -------- Run | Scr Mat Min Mat Mat Gar Total Allies . | . . . . . . Largest Group . | . . . . . . Highest-Rated Group . | . . . . . . Highest-Rated Ally . | . . . . . . Total Orders . | . . . . . . Ally Attacks . | . . . . . . Total Damage . | . . . . . . Kills . | . . . . . . Allies Corrupted . | . . . . . . Allies Melted . | . . . . . . Intel | -11 -10 -10 -9 -8 -8 ------- Run | Scr Mat Min Mat Mat Gar Robot Analysis Total . | . . . . . . Derelict Logs Recovered . | . . . . . . Drone Launches . | . . . . . . Drone Recoveries . | . . . . . . Exploration | -11 -10 -10 -9 -8 -8 ------------- Run | Scr Mat Min Mat Mat Gar Turns Passed 741 | 27 189 81 262 24 158 Spaces Moved 874 | 38 196 149 245 56 190 Core 576 | 38 196 149 182 . 11 Treads . | . . . . . . Legs . | . . . . . . Wheels . | . . . . . . Hover . | . . . . . . Flight 298 | . . . 63 56 179 Fastest Speed 40 | 50 50 50 40 40 40 Average Speed 50 | 57 50 50 60 40 40 Slowest Speed 100 | 100 50 50 100 40 50 Overloaded Moves . | . . . . . . Propulsion Burnouts . | . . . . . . Robots Hopped . | . . . . . . Cave-ins Triggered . | . . . . . . Exploration Rate (%) 27 | 3 34 53 28 9 37 Regions Visited 5 Branch Regions 1 Pre-discovered Areas 1 | . . 1 . . . Known Exits Taken 2 | . . . 1 1 . Unknown Exits Taken 3 | 1 1 1 . . . Scrap Searched 1 | . . 1 . . . Spaces Dug 1 | . . . . . 1 Terrain Destroyed 1 | . . . . . 1 Melee 1 | . . . . . 1 Projectile . | . . . . . . AOE . | . . . . . . Terrain Rammed . | . . . . . . Walls Destroyed . | . . . . . . Machines Disabled . | . . . . . . Actions | -11 -10 -10 -9 -8 -8 --------- Run | Scr Mat Min Mat Mat Gar Total 1086 | 41 285 154 316 57 233 Wait 121 | . 86 6 20 . 9 Move 870 | 37 195 148 244 56 190 Hop . | . . . . . . Pick Up 2 | 1 1 . . . . Fast Attach 12 | 3 1 . 7 1 . Attach 1 | . . . . . 1 Detach . | . . . . . . Swap 1 | . 1 . . . . Drop 8 | . 1 . 5 . 2 Fire . | . . . . . . Melee 45 | . . . 22 . 23 Ram . | . . . . . . Kick . | . . . . . . Crush . | . . . . . . Escape Stasis 8 | . . . . . 8 Rewire . | . . . . . . Trap . | . . . . . . Miscellaneous 18 | . . . 18 . . Route ------- -11/Scrapyard -10/Materials -10/Mines -9/Materials -8/Materials -8/Garrison History --------- Turn | Location | Event 12 | -11/Scrapyard | Upgraded with Propulsion slot (x1) 12 | -11/Scrapyard | Upgraded with Weapon slot (x1) 14 | -11/Scrapyard | Discovered new exit (range 17) 28 | -11/Scrapyard | Entered Materials 209 | -10/Materials | Discovered new exit (range 6) 217 | -10/Materials | Entered Mines 293 | -10/Mines | Discovered new exit (range 10) 294 | -10/Mines | Learned location of Storage (-7) 298 | -10/Mines | Entered Materials 300 | -9/Materials | Reached level 2 307 | -9/Materials | Build established: Hacker-Mutant 486 | -9/Materials | Reached level 3 524 | -9/Materials | Discovered new exit (range 17) 547 | -9/Materials | Identified exit to Materials 560 | -9/Materials | Entered another Materials area 562 | -8/Materials | Reached level 4 565 | -8/Materials | Upgraded with Utility slot (x1) 584 | -8/Materials | Identified exit to Garrison 584 | -8/Materials | Entered Garrison 586 | -8/Garrison | Installed Relay Interface Framework 608 | -8/Garrison | Triggered checkpoint 620 | -8/Garrison | Triggered checkpoint 655 | -8/Garrison | Core integrity fell below 50% 722 | -8/Garrison | Core integrity fell below 20% 725 | -8/Garrison | Reached level 5 728 | -8/Garrison | Triggered checkpoint 742 | -8/Garrison | Destroyed by G-47 Trooper with Particle Gun Last Messages --------------- 00709_ Field strength at 82. 00710_ Field strength at 73. 00711_ Dropped Axe. 00712_ Field strength at 53. 00713_ Field strength at 33. 00714_ Field strength at 16. 00715_ Stasis field depleted. 00716_ Triggered Stasis Trap. 00716_ A bubble of rippling energy engulfs the area. 00716_ Field strength at 85. 00721_ Field strength at 43. 00722_ Field strength at 28. 00723_ Field strength at 2. 00724_ Stasis field depleted. 00725_ Reached level 5. 00730_ VTOL Module destroyed. 00738_ Jacked S-10 Pest... 00741_ Triggered Stasis Trap. 00741_ A bubble of rippling energy engulfs the area. 00741_ Field strength at 88. Map ----- +----------------------------------------------------+ | ?????????????????????????????????????????????????? | | ?????????????????????????????????????????????????? | | ?????????????????????????????????????????????????? | | ?????????????????????????????????????????????????? | | ?????????????????????????????????????????????????? | | ?????????????????????????????????????????????????? | | ?????????????????????????????????????????????????? | | ?????????????????????????????????????????????????? | | ?????????????????????????????????????????????????? | | ?????????????????????????????????????????????????? | | ?????????????????????????????????????????????????? | | ?????????????????????????????????????????????????? | | ?????????????????????????????????????????????????? | | ?????????????????????????????????????????????????? | | ?????????????????????????????????????????????????? | | ?????????????????????????????????????????????????? | | ?????????????????????????????????????????????????? | | ?????????????????????????????????????????????????? | | ?????????????????????????????#####???????????????? | | ?????????????????????????????# #???????????????? | | ????????????????????????###### ###?????????????? | | ??????????????????????###ss #?????????????? | | ??????????????????????#"#s#####+## #?????????????? | | ??????????????????????#"gg#??????# #?????????????? | | ??????????????????????#" s#??????# #?????????????? | | ??????????????????????#" @#??????# #?????????????? | | ??????????????????????#"# #??????# #?????????????? | | ??????????????????????#####??????# #?????????????? | | ?????????????????????????????????# #?????????????? | | ?????????????????????????????????# #?????????????? | | ???????????????# ################ #######???????? | | ???????????????# / #???????? | | ???????????????# / #???????? | | ???????????????????########## ###+#### #???????? | | ????????????????????????????# #?# #??? #???????? | | ????????????????????????????# #?# #??? #???????? | | ????????????????????????????# #?# ??? #???????? | | ????????????????????????????# #?# #??? #???????? | | ????????????????????????????# +?? ???? #???????? | | ????????????????????????????# #?? ???? #???????? | | ????????????????????????????# #?? ??## ##""""### | | ????????????????????????????# ####### | | ????????????????????????????# *% | | ????????????????????????????# | | ????????????????????????????########## ## ## | | ???????????????????????????????????### ## ## | | ???????????????????????????????????# | | ???????????????????????????????????# | | ???????????????????????????????????# | | ???????????????????????????????????# | +----------------------------------------------------+ Best States ------------- Heat Dissipation 47 Energy Generation 10 Energy Capacity 125 Matter Stores 300 Matter Capacity 300 Sight Range 17 Terrain Scan Density 10 Resistance: KI 5 Resistance: TH 5 Evasion (%) 62 Offensive Hacking 30 Defensive Hacking 15 Item Schematics ----------------- None Robot Schematics ------------------ None Fabricated ------------ Nothing Alien Tech Used ----------------- None Achievements -------------- None Challenges ------------ None RPGLIKE | -11 -10 -10 -9 -8 -8 --------- Run | Scr Mat Min Mat Mat Gar Levels Raised 4 | . . . 2 1 1 XP Earned 9010 | 3000 . 600 2635 1500 1275 XP Spent 7475 | 3000 . . 2920 1555 . Upgrades 24 | 10 . . 8 6 . Propulsion Slot 1 | 1 . . . . . Utility Slot 1 | . . . . 1 . Weapon Slot 1 | 1 . . . . . Core Integrity 3 | . . . . 3 . Heat Dissipation 2 | . . . 2 . . Mass Support 2 | 1 . . 1 . . Inventory Capacity 1 | 1 . . . . . Sight Range 1 | 1 . . . . . Melee Accuracy 3 | . . . 3 . . Hack Attack % 4 | 3 . . . 1 . Hack Defense % 3 | 1 . . 2 . . KI Resistance % 1 | 1 . . . . . TH Resistance % 1 | . . . . 1 . Protomatter Created 131 | . . . 131 . . Integrity Restored 392 | . . . 392 . . Core 383 | . . . 383 . . Parts 9 | . . . 9 . . Protomatter Decayed 4 | . . . . . 4 Game ------ Seed AntimatterIntegrityPurifier Manual? 0 Play Time 00:15:07 Cumulative 101.2 hours Start 2021.12.28 @ 16:59:28 End 2021.12.29 @ 00:02:49 Sessions 3 Manual Loads 0 Difficulty Rogue Special Mode Winter2019/RPGLIKE Game No. 146 Rogue 146 Adventurer 0 Explorer 0 Win Type - Total 1 Types 1/0/0/0/0/0/0/0/0 Lore% 46 Gallery% 57 Achievement% 45 Wizard Run 0 Options --------- ASCII 0 Keyboard 0 Movement Mouse Keybinds 0 Fullscreen 1 Font 18/Terminus Map View 76x50 Tactical HUD 1 Map Filters NONE Filters NONE Steam 1 RUN: fd6f05ad-885e-4834-b88a-25dafcff26fa